fUSD/lending_fUSD_20250612
["ID","MTS","AMOUNT","RATE_DAILY","PERIOD"]
[365474127,1749695441089,-248.283825,0.00019169,2]
[365474128,1749695441099,-248.283825,0.00019169,2]
[365474129,1749695441108,-248.283825,0.00019169,2]
[365474130,1749695441118,-248.283825,0.00019169,2]
[365474131,1749695441129,-790.358268,0.00019169,2]
[365474132,1749695441139,-790.358268,0.00019169,2]
[365474133,1749695441149,-790.358268,0.00019169,2]
[365474134,1749695441159,-790.358268,0.00019169,2]
[365474135,1749695441169,-1965.438192,0.00019169,2]
[365474136,1749695441178,-1965.438192,0.00019169,2]
[365474137,1749695441188,-1965.438192,0.00019169,2]
[365474138,1749695441197,-1965.438192,0.00019169,2]
[365474139,1749695441206,-275.716868,0.00019169,2]
[365474140,1749695441215,-275.716868,0.00019169,2]
[365474141,1749695441224,-275.716868,0.00019169,2]
[365474142,1749695441234,-275.716868,0.00019169,2]
[365474143,1749695441243,-500.0,0.00019173,2]
[365474144,1749695441252,-501.58186371,0.00019173,2]
[365474145,1749695441262,-1000.0,0.00019176,2]
[365474146,1749695441271,-1000.0,0.00019176,2]
[365474147,1749695441281,-1000.0,0.00019176,2]
[365474148,1749695441290,-1000.0,0.00019176,2]
[365474149,1749695441300,-1000.0,0.00019176,2]
[365474150,1749695441310,-1000.0,0.00019176,2]
[365474151,1749695441320,-1000.0,0.00019176,2]
[365474152,1749695441330,-1000.0,0.00019176,2]
[365474153,1749695441339,-1000.0,0.00019176,2]
[365474154,1749695441349,-999.60337199,0.00019176,2]
[365474155,1749695441359,-183.17,0.00019176,2]
[365474156,1749695441369,-300.0,0.00019176,2]
[365474157,1749695441380,-671.9575314,0.00019177,2]
[365474158,1749695441390,-204.413857,0.00019177,2]
[365474159,1749695441399,-300.0,0.00019177,2]
[365474160,1749695441410,-1075.581954,0.00019177,2]
[365474161,1749695441419,-1075.581954,0.00019177,2]
[365474162,1749695441429,-933.196957,0.00019177,2]
[365474163,1749695441440,-933.196957,0.00019177,2]
[365474164,1749695441450,-151.0,0.00019177,2]
[365474165,1749695441460,-151.0,0.00019177,2]
[365474166,1749695441468,-151.0,0.00019177,2]
[365474167,1749695441478,-300.0,0.00019177,2]
[365474168,1749695441488,-151.0,0.00019177,2]
[365474169,1749695441498,-402.911985,0.00019177,2]
[365474170,1749695441508,-402.911985,0.00019177,2]
[365474171,1749695441517,-178.57851319,0.00019177,2]
[365474172,1749695441527,-650.0,0.00019178,2]
[365474173,1749695441536,-927.642954,0.00019178,2]
[365474174,1749695441546,-1627.723173,0.00019178,2]
[365474175,1749695441555,-204.418552,0.00019178,2]
[365474176,1749695441565,-151.0,0.00019178,2]
[365474177,1749695441574,-219.816887,0.00019178,2]
[365474178,1749695441583,-219.816887,0.00019178,2]
[365474179,1749695441592,-151.0,0.00019178,2]
[365474180,1749695441601,-151.0,0.00019178,2]
[365474181,1749695441611,-190.151171,0.00019178,2]
[365474182,1749695441620,-190.151171,0.00019178,2]
[365474183,1749695441631,-151.0,0.00019178,2]
[365474184,1749695441641,-163.864531,0.00019178,2]
[365474185,1749695441651,-163.864531,0.00019178,2]
[365474186,1749695441660,-151.0,0.00019178,2]
[365474187,1749695441669,-151.0,0.00019178,2]
[365474188,1749695441678,-151.0,0.00019178,2]
[365474189,1749695441687,-151.0,0.00019178,2]
[365474190,1749695441697,-151.0,0.00019178,2]
[365474191,1749695441706,-151.0,0.00019178,2]
[365474192,1749695441716,-151.0,0.00019178,2]
[365474193,1749695441725,-151.0,0.00019178,2]
[365474194,1749695441735,-151.0,0.00019178,2]
[365474195,1749695441744,-151.0,0.00019178,2]
[365474196,1749695441753,-151.0,0.00019178,2]
[365474197,1749695441762,-151.0,0.00019178,2]
[365474198,1749695441771,-151.0,0.00019178,2]
[365474199,1749695441781,-187.936511,0.00019178,2]
[365474200,1749695441790,-151.0,0.00019178,2]
[365474201,1749695441799,-151.0,0.00019178,2]
[365474202,1749695441808,-151.0,0.00019178,2]
[365474203,1749695441817,-151.0,0.00019178,2]
[365474204,1749695441826,-151.0,0.00019178,2]
[365474205,1749695441837,-152.582507,0.00019178,2]
[365474206,1749695441846,-253.429523,0.00019178,2]
[365474207,1749695441855,-253.429523,0.00019178,2]
[365474208,1749695441864,-151.0,0.00019178,2]
[365474209,1749695441875,-217.046769,0.00019178,2]
[365474210,1749695441884,-385.46341,0.00019178,2]
[365474211,1749695441893,-385.46341,0.00019178,2]
[365474212,1749695441903,-156.299501,0.00019178,2]
[365474213,1749695441938,-156.299501,0.00019178,2]
[365474214,1749695441949,-156.299501,0.00019178,2]
[365474215,1749695441959,-156.299501,0.00019178,2]
[365474216,1749695441969,-156.299501,0.00019178,2]
[365474217,1749695441979,-156.299501,0.00019178,2]
[365474218,1749695441989,-151.0,0.00019178,2]
[365474219,1749695442001,-151.0,0.00019178,2]
[365474220,1749695442011,-151.0,0.00019178,2]
[365474221,1749695442020,-1066.294642,0.00019178,2]
[365474222,1749695442030,-1066.294642,0.00019178,2]
[365474223,1749695442040,-1066.294642,0.00019178,2]
[365474224,1749695442049,-1066.294642,0.00019178,2]
[365474225,1749695442059,-249.846338,0.00019178,2]
[365474226,1749695442069,-1066.294642,0.00019178,2]
[365474227,1749695442081,-1066.294642,0.00019178,2]
[365474228,1749695442091,-1526.166164,0.00019178,2]
[365474229,1749695442100,-1526.166164,0.00019178,2]
[365474230,1749695442110,-1526.166164,0.00019178,2]
[365474231,1749695442119,-313.559335,0.00019178,2]
[365474232,1749695442129,-313.559335,0.00019178,2]
[365474233,1749695442138,-313.559335,0.00019178,2]
[365474234,1749695442147,-1526.166164,0.00019178,2]
[365474235,1749695442156,-1526.166164,0.00019178,2]
[365474236,1749695442166,-1526.166164,0.00019178,2]
[365474237,1749695442174,-313.559335,0.00019178,2]
[365474238,1749695442184,-313.559335,0.00019178,2]
[365474239,1749695442193,-313.559335,0.00019178,2]
[365474240,1749695442203,-151.0,0.00019178,2]
[365474241,1749695442212,-288.97814,0.00019178,2]
[365474242,1749695442222,-163.14854,0.00019178,2]
[365474243,1749695442232,-151.695166,0.00019178,2]
[365474244,1749695442242,-201.089157,0.00019178,2]
[365474245,1749695442251,-201.089157,0.00019178,2]
[365474246,1749695442261,-201.089157,0.00019178,2]
[365474247,1749695442271,-201.089157,0.00019178,2]
[365474248,1749695442281,-201.089157,0.00019178,2]
[365474249,1749695442290,-201.089157,0.00019178,2]
[365474250,1749695442300,-201.089157,0.00019178,2]
[365474251,1749695442310,-201.089157,0.00019178,2]
[365474252,1749695442320,-309.353722,0.00019178,2]
[365474253,1749695442330,-309.353722,0.00019178,2]
[365474254,1749695442341,-309.353722,0.00019178,2]
[365474255,1749695442351,-151.0,0.00019178,2]
[365474256,1749695442361,-151.0,0.00019178,2]
[365474257,1749695442371,-151.0,0.00019178,2]
[365474258,1749695442382,-151.0,0.00019178,2]
[365474259,1749695442392,-309.353722,0.00019178,2]
[365474260,1749695442402,-309.353722,0.00019178,2]
[365474261,1749695442412,-309.353722,0.00019178,2]
[365474262,1749695442422,-163.047165,0.00019178,2]
[365474263,1749695442432,-260.519929,0.00019178,2]
[365474264,1749695442441,-10000.0,0.00019178,2]
[365474265,1749695442451,-10000.0,0.00019178,2]
[365474266,1749695442461,-10000.0,0.00019178,2]
[365474267,1749695442470,-10000.0,0.00019178,2]
[365474268,1749695442482,-151.0,0.00019178,2]
[365474269,1749695442492,-151.0,0.00019178,2]
[365474270,1749695442502,-186.282334,0.00019178,2]
[365474271,1749695442512,-428.54508854,0.00019178,2]
[365474272,1749695442522,-482.26944197,0.00019178,2]
[365474273,1749695442531,-151.0,0.00019178,2]
[365474274,1749695442541,-151.0,0.00019178,2]
[365474275,1749695442551,-168.367975,0.00019178,2]
[365474276,1749695442560,-151.0,0.00019178,2]
[365474277,1749695442569,-151.0,0.00019178,2]
[365474278,1749695442579,-151.0,0.00019178,2]
[365474279,1749695442588,-151.0,0.00019178,2]
[365474280,1749695442599,-151.0,0.00019178,2]
[365474281,1749695442608,-151.0,0.00019178,2]
[365474282,1749695442617,-151.0,0.00019178,2]
[365474283,1749695442628,-151.0,0.00019178,2]
[365474284,1749695442638,-151.0,0.00019178,2]
[365474285,1749695442647,-181.388495,0.00019178,2]
[365474286,1749695442657,-448.081566,0.00019178,2]
[365474287,1749695442666,-448.081566,0.00019178,2]
[365474288,1749695442676,-448.081566,0.00019178,2]
[365474289,1749695442685,-448.081566,0.00019178,2]
[365474290,1749695442695,-151.0,0.00019178,2]
[365474291,1749695442705,-448.081566,0.00019178,2]
[365474292,1749695442714,-151.0,0.00019178,2]
[365474293,1749695442724,-448.081566,0.00019178,2]
[365474294,1749695442734,-151.0,0.00019178,2]
[365474295,1749695442743,-448.081566,0.00019178,2]
[365474296,1749695442753,-151.0,0.00019178,2]
[365474297,1749695442763,-448.081566,0.00019178,2]
[365474298,1749695442773,-160.6019,0.00019178,2]
[365474299,1749695442782,-187.036675,0.00019178,2]
[365474300,1749695442792,-161.511675,0.00019178,2]
[365474301,1749695442800,-157.482517,0.00019178,2]
[365474302,1749695442810,-560.61335948,0.00019178,2]
[365474303,1749695442819,-559.30194254,0.00019178,2]
[365474304,1749695442828,-161.45419362,0.00019178,2]
[365474305,1749695442837,-478.500112,0.00019178,2]
[365474306,1749695442847,-478.500112,0.00019178,2]
[365474307,1749695442856,-478.500112,0.00019178,2]
[365474308,1749695442866,-478.500112,0.00019178,2]
[365474309,1749695442875,-478.500112,0.00019178,2]
[365474310,1749695442885,-478.500112,0.00019178,2]
[365474311,1749695442894,-478.500112,0.00019178,2]
[365474312,1749695442903,-478.500112,0.00019178,2]
[365474313,1749695442913,-499.25861241,0.00019178,2]
[365474314,1749695442929,-1719.76714,0.00019178,2]
[365474315,1749695442939,-1719.76714,0.00019178,2]
[365474316,1749695442948,-1719.76714,0.00019178,2]
[365474317,1749695442958,-490.0,0.00019178,2]
[365474318,1749695442967,-1719.76714,0.00019178,2]
[365474319,1749695442977,-480.19024829,0.00019178,2]
[365474320,1749695442989,-1719.76714,0.00019178,2]
[365474321,1749695443001,-1719.76714,0.00019178,2]
[365474322,1749695443011,-1719.76714,0.00019178,2]
[365474323,1749695443020,-1719.76714,0.00019178,2]
[365474324,1749695443030,-497.7423172,0.00019178,2]
[365474325,1749695443039,-536.43329217,0.00019178,2]
[365474326,1749695443049,-481.32503286,0.00019178,2]
[365474328,1749695443059,-524.33689183,0.00019178,2]
[365474329,1749695443071,-151.0,0.00019178,2]
[365474330,1749695443080,-151.0,0.00019178,2]
[365474331,1749695443090,-151.0,0.00019178,2]
[365474332,1749695443100,-231.76939,0.00019178,2]
[365474333,1749695443109,-496.5518472,0.00019178,2]
[365474334,1749695443119,-496.19510095,0.00019178,2]
[365474335,1749695443129,-490.0,0.00019178,2]
[365474336,1749695443138,-331.82691418,0.00019178,2]
[365474337,1749695443147,-250.0,0.00019178,2]
[365474338,1749695443157,-490.0,0.00019178,2]
[365474339,1749695443166,-491.11636498,0.00019178,2]
[365474340,1749695443175,-511.55120627,0.00019178,2]
[365474341,1749695443184,-496.47969325,0.00019178,2]
[365474342,1749695443194,-1075.581954,0.00019178,2]
[365474343,1749695443203,-1075.581954,0.00019178,2]
[365474344,1749695443213,-446.82297708,0.00019178,2]
[365474345,1749695443223,-1075.581954,0.00019178,2]
[365474346,1749695443232,-1075.581954,0.00019178,2]
[365474347,1749695443241,-490.0,0.00019178,2]
[365474348,1749695443250,-490.0,0.00019178,2]
[365474349,1749695443260,-1075.581954,0.00019178,2]
[365474350,1749695443269,-1075.581954,0.00019178,2]
[365474351,1749695443279,-493.14862458,0.00019178,2]
[365474352,1749695443289,-1075.581954,0.00019178,2]
[365474353,1749695443299,-490.0,0.00019178,2]
[365474354,1749695443308,-504.38279221,0.00019178,2]
[365474355,1749695443319,-1075.581954,0.00019178,2]
[365474356,1749695443328,-518.38162062,0.00019178,2]
[365474357,1749695443341,-495.81552932,0.00019178,2]
[365474358,1749695443351,-507.08739217,0.00019178,2]
[365474359,1749695443360,-933.196957,0.00019178,2]
[365474360,1749695443370,-933.196957,0.00019178,2]
[365474361,1749695443381,-933.196957,0.00019178,2]
[365474362,1749695443391,-933.196957,0.00019178,2]
[365474363,1749695443401,-506.96644367,0.00019178,2]
[365474364,1749695443411,-502.0229953,0.00019178,2]
[365474365,1749695443421,-505.91478955,0.00019178,2]
[365474366,1749695443431,-933.196957,0.00019178,2]
[365474367,1749695443441,-933.196957,0.00019178,2]
[365474368,1749695443451,-933.196957,0.00019178,2]
[365474369,1749695443461,-933.196957,0.00019178,2]
[365474370,1749695443471,-490.0,0.00019178,2]
[365474371,1749695443481,-474.84442603,0.00019178,2]
[365474372,1749695443491,-152.727629,0.00019178,2]
[365474373,1749695443500,-496.88083956,0.00019178,2]
[365474374,1749695443510,-498.08613377,0.00019178,2]
[365474375,1749695443519,-496.28235516,0.00019178,2]
[365474376,1749695443529,-472.40934845,0.00019178,2]
[365474377,1749695443539,-500.66114983,0.00019178,2]
[365474378,1749695443548,-516.68106835,0.00019178,2]
[365474379,1749695443558,-503.58294566,0.00019178,2]
[365474380,1749695443568,-503.2188125,0.00019178,2]
[365474381,1749695443578,-424.09963748,0.00019178,2]
[365474382,1749695443587,-501.29009444,0.00019178,2]
[365474383,1749695443596,-596.27843342,0.00019178,2]
[365474384,1749695443606,-235.015037,0.00019178,2]
[365474385,1749695443616,-500.69213574,0.00019178,2]
[365474386,1749695443626,-235.015037,0.00019178,2]
[365474387,1749695443635,-500.13135186,0.00019178,2]
[365474388,1749695443644,-235.015037,0.00019178,2]
[365474389,1749695443653,-235.015037,0.00019178,2]
[365474390,1749695443663,-510.8941246,0.00019178,2]
[365474391,1749695443672,-495.12870359,0.00019178,2]
[365474392,1749695443682,-493.62072391,0.00019178,2]
[365474393,1749695443692,-235.015037,0.00019178,2]
[365474394,1749695443701,-235.015037,0.00019178,2]
[365474395,1749695443710,-405.635929,0.00019178,2]
[365474396,1749695443720,-235.015037,0.00019178,2]
[365474397,1749695443730,-490.0,0.00019178,2]
[365474398,1749695443739,-235.015037,0.00019178,2]
[365474399,1749695443748,-494.0907078,0.00019178,2]
[365474400,1749695443757,-490.0,0.00019178,2]
[365474401,1749695443767,-502.86335216,0.00019178,2]
[365474402,1749695443776,-501.38944447,0.00019178,2]
[365474403,1749695443785,-495.2773973,0.00019178,2]
[365474404,1749695443794,-489.2941208,0.00019178,2]
[365474405,1749695443804,-490.0,0.00019178,2]
[365474406,1749695443813,-496.8364663,0.00019178,2]
[365474407,1749695443823,-501.56770996,0.00019178,2]
[365474408,1749695443832,-488.52469404,0.00019178,2]
[365474409,1749695443841,-505.70279006,0.00019178,2]
[365474410,1749695443851,-473.30484758,0.00019178,2]
[365474411,1749695443861,-500.49977424,0.00019178,2]
[365474412,1749695443870,-513.45769425,0.00019178,2]
[365474414,1749695443881,-497.20510621,0.00019178,2]
[365474415,1749695443891,-499.09526453,0.00019178,2]
[365474416,1749695443900,-501.93717799,0.00019178,2]
[365474417,1749695443910,-501.09745265,0.00019178,2]
[365474418,1749695443919,-472.48991062,0.00019178,2]
[365474419,1749695443929,-499.80459413,0.00019178,2]
[365474420,1749695443939,-502.28647466,0.00019178,2]
[365474421,1749695443949,-443.59015299,0.00019178,2]
[365474422,1749695443958,-510.3873903,0.00019178,2]
[365474423,1749695443968,-438.28977662,0.00019178,2]
[365474424,1749695443977,-151.0,0.00019178,2]
[365474425,1749695443987,-151.0,0.00019178,2]
[365474426,1749695444000,-151.0,0.00019178,2]
[365474427,1749695444009,-151.0,0.00019178,2]
[365474428,1749695444019,-445.38173653,0.00019178,2]
[365474429,1749695444028,-501.35718287,0.00019178,2]
[365474430,1749695444038,-467.84506344,0.00019178,2]
[365474431,1749695444047,-475.04529009,0.00019178,2]
[365474432,1749695444057,-433.80206354,0.00019178,2]
[365474433,1749695444067,-512.65241397,0.00019178,2]
[365474434,1749695444078,-500.24075192,0.00019178,2]
[365474435,1749695444088,-520.89514412,0.00019178,2]
[365474436,1749695444098,-493.96008368,0.00019178,2]
[365474437,1749695444107,-508.20287614,0.00019178,2]
[365474438,1749695444116,-326.21141851,0.00019178,2]
[365474439,1749695444126,-472.63027869,0.00019178,2]
[365474440,1749695444136,-499.03466101,0.00019178,2]
[365474441,1749695444146,-497.03894984,0.00019178,2]
[365474442,1749695444155,-557.71231897,0.00019178,2]
[365474443,1749695444166,-502.41049519,0.00019178,2]
[365474444,1749695444176,-562.42489786,0.00019178,2]
[365474445,1749695444186,-463.50484588,0.00019178,2]
[365474446,1749695444195,-472.46411381,0.00019178,2]
[365474447,1749695444205,-463.83313396,0.00019178,2]
[365474448,1749695444215,-202.03134003,0.00019178,2]
[365474449,1749695444226,-490.0,0.00019178,2]
[365474450,1749695444236,-488.16695981,0.00019178,2]
[365474451,1749695444475,-490.0,0.00019178,2]
[365474452,1749695444487,-468.89198663,0.00019178,2]
[365474453,1749695444497,-489.64702349,0.00019178,2]
[365474454,1749695444507,-490.0,0.00019178,2]
[365474455,1749695444517,-464.41117979,0.00019178,2]
[365474456,1749695444526,-513.28,0.00019178,2]
[365474457,1749695444536,-469.35349934,0.00019178,2]
[365474458,1749695444546,-248.283825,0.00019178,2]
[365474459,1749695444556,-248.283825,0.00019178,2]
[365474460,1749695444566,-248.283825,0.00019178,2]
[365474461,1749695444576,-30.37949989,0.00019178,2]
[365474462,1749695445511,-548.11313,0.00019043,2]
[365474463,1749695445524,-293.97569166,0.00019043,2]
[365474464,1749695445534,-217.90432511,0.00019178,2]
[365474465,1749695445545,-448.26099326,0.00019178,2]
[365474466,1749695445555,-503.66537481,0.00019178,2]
[365474467,1749695445564,-248.283825,0.00019178,2]
[365474468,1749695445575,-248.283825,0.00019178,2]
[365474469,1749695445585,-248.283825,0.00019178,2]
[365474470,1749695445595,-248.283825,0.00019178,2]
[365474471,1749695445604,-495.38040459,0.00019178,2]
[365474472,1749695445614,-437.59427712,0.00019178,2]
[365474473,1749695445624,-452.68003083,0.00019178,2]
[365474474,1749695445635,-465.81786763,0.00019178,2]
[365474475,1749695445645,-436.11994188,0.00019178,2]
[365474476,1749695445655,-305.28427741,0.00019178,2]
[365474477,1749695445666,-490.0,0.00019178,2]
[365474478,1749695445676,-490.0,0.00019178,2]
[365474479,1749695445685,-478.5056144,0.00019178,2]
[365474480,1749695445695,-499.41706213,0.00019178,2]
[365474481,1749695445705,-467.60243221,0.00019178,2]
[365474482,1749695445715,-1384.098466,0.00019178,2]
[365474483,1749695445724,-1384.098466,0.00019178,2]
[365474484,1749695445734,-490.41122139,0.00019178,2]
[365474485,1749695445744,-1384.098466,0.00019178,2]
[365474486,1749695445753,-866.41728004,0.00019178,2]
[365474487,1749695445767,-517.68118596,0.00019178,2]
[365474488,1749695445777,-427.60553009,0.00019178,2]
[365474489,1749695445787,-482.16914592,0.00019178,2]
[365474490,1749695445796,-475.18689101,0.00019178,2]
[365474491,1749695445806,-1384.098466,0.00019178,2]
[365474492,1749695445815,-1384.098466,0.00019178,2]
[365474493,1749695445824,-517.37863852,0.00019178,2]
[365474494,1749695445833,-479.31994553,0.00019178,2]
[365474495,1749695445843,-1384.098466,0.00019178,2]
[365474496,1749695445852,-1384.098466,0.00019178,2]
[365474497,1749695445862,-490.0,0.00019178,2]
[365474498,1749695445878,-490.0,0.00019178,2]
[365474499,1749695445887,-511.40256896,0.00019178,2]
[365474500,1749695445896,-432.54852844,0.00019178,2]
[365474501,1749695445906,-490.0,0.00019178,2]
[365474502,1749695445915,-477.36996715,0.00019178,2]
[365474503,1749695445925,-402.39045865,0.00019178,2]
[365474504,1749695445935,-490.0,0.00019178,2]
[365474505,1749695445944,-477.42303929,0.00019178,2]
[365474506,1749695445956,-460.20604016,0.00019178,2]
[365474507,1749695445965,-495.89477943,0.00019178,2]
[365474508,1749695445975,-489.46472218,0.00019178,2]
[365474509,1749695445985,-496.78610137,0.00019178,2]
[365474510,1749695445995,-493.06114623,0.00019178,2]
[365474511,1749695446006,-453.90321858,0.00019178,2]
[365474512,1749695446016,-790.358268,0.00019178,2]
[365474514,1749695446025,-790.358268,0.00019178,2]
[365474516,1749695446035,-494.34788047,0.00019178,2]
[365474518,1749695446045,-490.0,0.00019178,2]
[365474519,1749695446055,-790.358268,0.00019178,2]
[365474520,1749695446064,-790.358268,0.00019178,2]
[365474521,1749695446080,-490.0,0.00019178,2]
[365474522,1749695446090,-790.358268,0.00019178,2]
[365474523,1749695446100,-490.0,0.00019178,2]
[365474524,1749695446110,-790.358268,0.00019178,2]
[365474525,1749695446120,-790.358268,0.00019178,2]
[365474526,1749695446130,-790.358268,0.00019178,2]
[365474527,1749695446140,-151.824188,0.00019178,2]
[365474529,1749695446150,-1965.438192,0.00019178,2]
[365474530,1749695446160,-472.66993206,0.00019178,2]
[365474531,1749695446170,-1965.438192,0.00019178,2]
[365474532,1749695446180,-1965.438192,0.00019178,2]
[365474533,1749695446189,-1965.438192,0.00019178,2]
[365474535,1749695446200,-471.67408899,0.00019178,2]
[365474537,1749695446209,-151.0,0.00019178,2]
[365474539,1749695446219,-104.47331105,0.00019178,2]
[365474541,1749695446234,-46.52668895,0.00019178,2]
[365474542,1749695446244,-467.06451015,0.00019178,2]
[365474543,1749695446253,-151.0,0.00019178,2]
[365474544,1749695446263,-476.98460931,0.00019178,2]
[365474545,1749695446274,-151.0,0.00019178,2]
[365474546,1749695446284,-947.47064879,0.00019178,2]
[365474547,1749695446296,-539.91109986,0.00019178,2]
[365474548,1749695446317,-478.05644335,0.00019178,2]
[365474549,1749695446327,-1965.438192,0.00019178,2]
[365474550,1749695446337,-1965.438192,0.00019178,2]
[365474551,1749695446348,-469.81444947,0.00019178,2]
[365474552,1749695446358,-1965.438192,0.00019178,2]
[365474553,1749695446368,-151.0,0.00019178,2]
[365474554,1749695446379,-490.0,0.00019178,2]
[365474555,1749695446389,-151.0,0.00019178,2]
[365474556,1749695446399,-468.15771473,0.00019178,2]
[365474557,1749695446409,-279.983406,0.00019178,2]
[365474558,1749695446419,-192.90810435,0.00019178,2]
[365474559,1749695446429,-473.74397161,0.00019178,2]
[365474560,1749695446439,-473.18276726,0.00019178,2]
[365474561,1749695446448,-489.28316488,0.00019178,2]
[365474562,1749695446460,-98.31690253,0.00019178,2]
[365474563,1749695446477,-407.72006153,0.00019178,2]
[365474564,1749695446488,-500.0,0.00019178,2]
[365474565,1749695446498,-396.0026392,0.00019178,2]
[365474566,1749695446510,-2.25183728,0.00019178,2]
[365474567,1749695446520,-510.49240646,0.00019178,2]
[365474568,1749695446530,-490.0,0.00019178,2]
[365474569,1749695446539,-472.33536627,0.00019178,2]
[365474570,1749695446550,-489.17205954,0.00019178,2]
[365474571,1749695446559,-460.42925985,0.00019178,2]
[365474572,1749695446570,-468.06662015,0.00019178,2]
[365474573,1749695446579,-483.88759142,0.00019178,2]
[365474574,1749695446589,-1047.70731907,0.00019178,2]
[365474575,1749695446600,-481.57716198,0.00019178,2]
[365474576,1749695446611,-473.71560818,0.00019178,2]
[365474577,1749695446621,-519.41080196,0.00019178,2]
[365474578,1749695446730,-233.68518878,0.00019178,2]
[365474582,1749695447162,-281.76408531,0.00019178,2]
[365474583,1749695447171,-504.71274715,0.00019178,2]
[365474584,1749695447181,-421.09829714,0.00019178,2]
[365474585,1749695447193,-51.41892288,0.00019178,2]
[365474586,1749695447202,-471.35078218,0.00019178,2]
[365474587,1749695447212,-482.57806903,0.00019178,2]
[365474588,1749695447221,-509.60498688,0.00019178,2]
[365474589,1749695447231,-429.79039102,0.00019178,2]
[365474590,1749695447239,-151.0,0.00019178,2]
[365474591,1749695447248,-476.47374003,0.00019178,2]
[365474592,1749695447257,-151.0,0.00019178,2]
[365474593,1749695447267,-151.0,0.00019178,2]
[365474594,1749695447276,-151.0,0.00019178,2]
[365474595,1749695447286,-471.27291811,0.00019178,2]
[365474596,1749695447295,-490.0,0.00019178,2]
[365474597,1749695447304,-490.0,0.00019178,2]
[365474598,1749695447314,-476.29607984,0.00019178,2]
[365474599,1749695447323,-151.0,0.00019178,2]
[365474600,1749695447333,-151.0,0.00019178,2]
[365474601,1749695447342,-483.02942011,0.00019178,2]
[365474602,1749695447352,-151.0,0.00019178,2]
[365474603,1749695447361,-151.0,0.00019178,2]
[365474604,1749695447371,-497.64511543,0.00019178,2]
[365474605,1749695447381,-490.0,0.00019178,2]
[365474606,1749695447391,-507.28228463,0.00019178,2]
[365474607,1749695447400,-473.57709935,0.00019178,2]
[365474608,1749695447410,-472.18244453,0.00019178,2]
[365474609,1749695447419,-490.0,0.00019178,2]
[365474610,1749695447428,-463.7113455,0.00019178,2]
[365474611,1749695447437,-467.15732505,0.00019178,2]
[365474612,1749695447447,-490.0,0.00019178,2]
[365474613,1749695447456,-481.67269095,0.00019178,2]
[365474614,1749695447466,-467.71418616,0.00019178,2]
[365474615,1749695447476,-482.46716248,0.00019178,2]
[365474616,1749695447486,-519.02094574,0.00019178,2]
[365474617,1749695447496,-495.94228941,0.00019178,2]
[365474618,1749695447505,-464.08706014,0.00019178,2]
[365474619,1749695447514,-493.30516309,0.00019178,2]
[365474620,1749695447523,-498.32267895,0.00019178,2]
[365474621,1749695447533,-471.04847299,0.00019178,2]
[365474622,1749695447542,-491.31161756,0.00019178,2]
[365474623,1749695447551,-365.48261652,0.00019178,2]
[365474624,1749695447560,-494.92233652,0.00019178,2]
[365474625,1749695447569,-151.0,0.00019178,2]
[365474626,1749695447578,-151.0,0.00019178,2]
[365474627,1749695447587,-151.0,0.00019178,2]
[365474628,1749695447595,-151.0,0.00019178,2]
[365474629,1749695447604,-466.63628862,0.00019178,2]
[365474630,1749695447613,-151.0,0.00019178,2]
[365474631,1749695447622,-716.63,0.00019178,2]
[365474632,1749695447635,-151.0,0.00019178,2]
[365474633,1749695447644,-474.01872252,0.00019178,2]
[365474634,1749695447653,-151.0,0.00019178,2]
[365474635,1749695447662,-518.45874291,0.00019178,2]
[365474636,1749695447671,-151.0,0.00019178,2]
[365474637,1749695447680,-483.75369874,0.00019178,2]
[365474638,1749695447689,-151.0,0.00019178,2]
[365474639,1749695447698,-475.98071414,0.00019178,2]